{"text_format":"1","workbook":"xlsx","n_sheets":4,"sheets":["01|Elementos","02|Muestreo","03|Fecuencia","04|05|06|07"],"not_rendered":{"charts":0,"images":1,"macros":1,"external_links":0,"defined_names":1,"comments":0,"pivot_tables":0},"unopened":[],"bounds":{"document_bytes":16777216,"sheet_cells":100000,"rows_first":2000,"rows_last":500,"rows_between":2000,"halvings":0,"cell_chars":16384,"cell_head_chars":4096},"cells_cut":0,"cells_raw":0,"read":"whole","date_system":"1900"}

{"sheet":"01|Elementos","index":0,"n_rows":7,"n_cols":6,"rows_kept":7,"cut":false,"hidden":false,"merged":[[1,1,1,5]]}
[]
[null,"FICHA DESCRIPTIVA DE ELEMENTOS Y PUNTOS DE CORTE"]
[null,"Nombre del proceso: "]
[null,"Analistas de tiempos:"]
[null,"Operarios:"]
[]
[null,"Elem.","Descripción del elemento","Puntos de corte / finalización",null,"Imagen finaliza el elemento"]

{"sheet":"02|Muestreo","index":1,"n_rows":25,"n_cols":10,"rows_kept":25,"cut":false,"hidden":false,"merged":[[21,8,21,10],[22,8,22,10],[1,1,1,11],[11,1,11,2],[11,4,11,7],[15,8,16,8],[18,4,18,5],[18,7,19,7],[21,7,22,7]]}
[]
[null,"SIMULADOR PARA CALCULO MUESTREO ALEATORIO SIMPLE (CON CICLOS)"]
[]
[null,null,null,null,null,null,"n","Tamaño de la muestra"]
[null,null,null,null,null,null,"Z","Nivel de confianza"]
[null,null,null,null,null,null,"p","Variabilidad positiva"]
[null,null,null,null,null,null,"q","Variabilidad negativa"]
[null,null,null,null,null,null,"e","Nivel de error permitido"]
[null,null,null,null,null,null,"N","Tamaño población (mediciones)"]
[]
[]
[null,"Tabla Z",null,null,"DATOS PARA EL CALCULO"]
[null,"Confianza","Valor Z",null,"Nivel de confianza solicitado"]
[null,0.99,2.58,null,"Nivel de error permitido"]
[null,0.98,2.38,null,"Tamaño de la Población"]
[null,0.97,2.25,null,"p: probabilidad de que ocurra"]
[null,0.96,2.12,null,"q: probabilidad de que no ocurra"]
[null,0.95,1.96]
[null,0.94,1.88,null,"Definición variables",null,null,"n  ="]
[null,0.93,1.81,null,"n"]
[null,0.92,1.75,null,"Z"]
[null,0.91,1.69,null,"p",null,null,"n  ="]
[null,0.9,1.65,null,"q"]
[null,0.8,1.28,null,"E"]
[null,null,null,null,"N",null,null,"n  =",null,"Ciclos o muestreos"]

{"sheet":"03|Fecuencia","index":2,"n_rows":23,"n_cols":23,"rows_kept":23,"cut":false,"hidden":false,"merged":[[6,16,6,22],[13,20,13,21],[14,20,14,21],[15,20,15,21],[1,10,1,15],[2,17,2,18],[1,1,1,8],[3,1,3,4],[4,1,4,4],[6,5,6,7],[6,11,6,13]]}
[]
[null,"OBSERVACIONES ALEATORIAS",null,null,null,null,null,null,null,null,"ESCALA DE TIEMPO TURNO"]
[null,null,null,null,null,null,null,null,null,null,null,null,null,null,null,null,null,"Hora Desc."]
[null,"Hora",null,null,null,"06:00:00","06:30:00","07:00:00","07:30:00","08:00:00","08:30:00","09:00:00","09:30:00","10:00:00","10:30:00","11:00:00","11:30:00","12:00:00","12:30:00","01:00:00","01:30:00","02:00:00","02:30:00"]
[null,"Observacion",null,null,null,1,{"$f":"F5+1","v":2},{"$f":"G5+1","v":3},4,5,6,7,8,9,10,11,12,null,null,13,14,15,{"$f":"V5+1","v":16}]
[]
[null,"Hora","Obs","Hor","Min","Hora de la Obser.",null,null,null,null,null,"Hora de la Obser.",null,null,null,null,"CALCULO DE DIAS PARA OBSERVACIONES"]
[null,null,null,null,null,null,":",null,null,null,null,null,":"]
[null,null,null,null,null,null,":",null,null,null,null,null,":",null,null,null,"MUESTREO:"]
[null,null,null,null,null,null,":",null,null,null,null,null,":",null,null,null,"OBSERVACIONES:"]
[null,null,null,null,null,null,":",null,null,7,null,null,":",null,null,null,"DIAS:"]
[null,null,null,null,null,null,":",null,null,8,null,null,":"]
[null,null,null,null,null,null,":",null,null,8,null,null,":"]
[null,null,null,null,null,null,":",null,null,9,null,null,":",null,null,null,"ITERACIONES"]
[null,null,null,null,null,null,":",null,null,9,null,null,":",null,null,null,"SIMULACION"]
[null,null,null,null,null,null,":",null,null,10,null,null,":"]
[null,null,null,null,null,null,":",null,null,10,null,null,":",null,null,null,{"$f":"W15*100","v":0},{"$f":"Q17-(100/7)","v":-14.285714285714286},{"$f":"R17-(100/7)","v":-28.571428571428573},-42.857142857142861,-57.142857142857146,-71.428571428571431,-85.714285714285722]
[null,null,null,null,null,null,":",null,null,11,null,null,":"]
[null,null,null,null,null,null,":",null,null,11,null,null,":"]
[null,null,null,null,null,null,":",null,null,1,null,null,":"]
[null,null,null,null,null,null,":",null,null,1,null,null,":"]
[null,null,null,null,null,null,":",null,null,2,null,null,":"]
[null,null,null,null,null,null,":",null,null,2,null,null,":"]

{"sheet":"04|05|06|07","index":3,"n_rows":41,"n_cols":8,"rows_kept":41,"cut":false,"hidden":false,"merged":[[37,3,39,3],[29,5,29,7],[1,1,1,7],[27,1,27,3],[29,3,31,3],[33,3,35,3]]}
[]
[null,"Modelo para el calculo de la USP (Unidad Estándar de Producción)"]
[]
[null,"Elemento1.\n","Tiempo Cronometro seg.","Valoración ritmo de trabajo","Tiempo Normaliz. Seg","% de Suplement.","Tiempo estándar seg","USP Total min"]
[]
[]
[]
[]
[]
[]
[]
[null,"Elemento2. ","Tiempo Cronometro seg.","Valoración ritmo de trabajo","Tiempo Normaliz. Seg","% de Suplement.","Tiempo estándar seg","USP Total min"]
[]
[]
[]
[]
[]
[]
[]
[null,"Elemento3. ","Tiempo Cronometro seg.","Valoración ritmo de trabajo","Tiempo Normaliz. Seg","% de Suplement.","Tiempo estándar seg","USP Total min"]
[]
[]
[]
[]
[]
[]
[]
[null,"Calculo de tiempos suplementarios",null,null,null,null,"USP TOTAL"]
[null,"Por Fatiga Constantes"]
[null,"Necesidad personal",null,null,null,"Resumen USP Total Minutos"]
[null,"Fatiga",null,null,null,"Elemento","Tiempo/min","% Particip."]
[null,null,null,null,null,1]
[null,"Por Fatiga Variables",null,null,null,2]
[null,"Concentración",null,null,null,3]
[null,"Estado de pie",null,null,null,4]
[null,null,null,null,null,5]
[null,"Suplementos por Contingencia",null,null,null,6]
[null,"Falta de M.P",null,null,null,7]
[null,"Paro mecanico",null,null,null,8]
[null,null,null,null,null,9]
[null,"Suplementos Totales",null,null,null,10]